bitfinex-derivatives/quotes_ETHF0:USTF0_20220108
["timestamp","ask_amount","ask_price","bid_price","bid_amount"]
[1641661129566,1.59739561,3129.5,3127.9,15.20717109]
[1641661129760,1.5,3129.5,3128.0,0.07989]
[1641661129960,1.5,3130.1,3128.0,5.193426]
[1641661130162,1.5,3129.1,3128.0,5.113536]
[1641661130361,1.5,3128.8,3127.4,0.07989]
[1641661130561,1.5,3129.6,3127.3,0.29635915]
[1641661130763,1.5,3128.1,3126.9,0.3580264]
[1641661130962,1.5,3128.4,3126.3,0.07992]
[1641661131164,1.5,3128.2,3126.7,4.0]
[1641661131365,1.5,3128.3,3126.7,4.0]
[1641661131566,2.00479,3127.8,3127.1,2.00479]
[1641661131762,2.00479,3127.8,3127.2,0.264788]
[1641661132163,2.910364,3127.8,3127.2,0.264788]
[1641661132563,2.00479,3127.8,3127.2,0.264788]
[1641661132763,1.5,3129.1,3127.2,13.874788]
[1641661132964,1.5,3129.5,3127.3,13.6899]
[1641661133163,1.5,3129.5,3127.3,5.195807]
[1641661133564,2.00479,3129.1,3128.3,2.00479]
[1641661133768,1.5,3128.5,3127.4,1.15109878]
[1641661133967,1.5,3128.6,3127.4,1.15109878]
[1641661134168,1.5,3128.2,3127.4,1.15109878]
[1641661134368,0.905574,3128.1,3127.4,1.15109878]
[1641661134568,2.00479,3129.1,3127.4,1.15109878]
[1641661134569,1.5,3128.9,3127.4,1.15109878]
[1641661134769,1.5,3128.6,3127.4,1.15109878]
[1641661135068,1.5,3127.9,3125.9,4.07992]
[1641661135268,1.5,3127.9,3125.9,0.07992]
[1641661135469,2.00479,3126.8,3125.9,2.08471]
[1641661135668,3.50479,3126.8,3126.0,5.116888]
[1641661135868,0.264787,3126.7,3126.0,5.116888]
[1641661136069,0.264787,3126.7,3126.0,0.264788]
[1641661136270,1.5,3126.5,3126.1,0.95963894]
[1641661136471,1.764787,3126.5,3126.1,0.95963894]
[1641661136873,0.264787,3126.5,3125.8,1.38201936]
[1641661137073,1.5,3125.9,3125.8,1.38201936]
[1641661137271,1.764787,3125.9,3124.5,0.07996]
[1641661137471,2.00479,3125.4,3124.7,13.61]
[1641661137672,2.00479,3125.4,3125.1,13.61]
[1641661137972,1.5,3126.4,3125.3,13.61]
[1641661138173,1.53390257,3127.7,3125.2,1.1519188]
[1641661138372,1.5,3127.5,3125.3,5.119508]
[1641661138573,1.5,3126.7,3125.3,5.119508]
[1641661138771,1.5,3125.6,3125.2,1.1519188]
[1641661139071,1.5,3125.6,3125.1,0.264788]
[1641661139280,1.5,3125.6,3124.6,2.00479]
[1641661139477,1.5,3124.7,3124.6,2.00479]
[1641661139874,0.264787,3124.8,3124.6,2.00479]
[1641661140273,1.59916332,3126.4,3124.6,2.00479]
[1641661140476,1.5,3125.7,3124.9,4.0]
[1641661140675,0.264787,3125.6,3125.0,0.264788]
[1641661140873,1.5,3125.1,3124.6,2.00479]
[1641661141079,0.640787,3125.0,3124.6,2.00479]
[1641661141278,1.5,3125.4,3124.6,2.269578]
[1641661141474,2.00479,3125.1,3124.6,2.269578]
[1641661141776,1.5,3125.9,3124.9,4.0]
[1641661141974,1.59886417,3126.7,3125.0,13.61]
[1641661142176,0.75967247,3127.2,3125.4,13.61]
[1641661142376,1.5,3125.9,3125.4,13.61]
[1641661142576,1.5,3125.9,3125.5,0.264788]
[1641661142775,1.5,3126.6,3125.5,0.264788]
[1641661142976,1.5,3127.0,3125.5,13.874788]
[1641661143183,0.75967247,3127.3,3125.7,10.70537961]
[1641661143377,0.75967247,3127.3,3125.6,5.15174522]
[1641661143576,2.00479,3126.8,3126.3,0.95957496]
[1641661143777,0.905574,3126.7,3126.3,0.95957496]
[1641661143977,0.264787,3126.7,3126.3,1.22436296]
[1641661144381,0.264787,3126.8,3126.1,1.05107458]
[1641661144578,2.00479,3127.1,3126.2,13.61]
[1641661144778,2.00479,3127.1,3126.4,1.15147317]
[1641661144980,2.00479,3127.1,3126.5,0.07994]
[1641661145178,1.5,3127.7,3126.5,5.117134]
[1641661145381,0.07994,3129.3,3126.4,1.23140317]
[1641661145382,1.5,3128.0,3126.4,1.23140317]
[1641661145682,2.00479,3127.5,3126.8,2.00479]
[1641661145881,0.905575,3127.4,3126.8,2.00479]
[1641661146285,2.00479,3127.5,3126.9,4.0]
[1641661146482,0.75967247,3128.4,3127.0,13.68993]
[1641661146782,0.75767247,3128.4,3127.5,13.61]
[1641661146984,1.5,3127.7,3127.5,0.07992]
[1641661147288,0.264788,3127.6,3126.8,2.00479]
[1641661147483,2.00479,3127.2,3126.8,2.00479]
[1641661147683,2.269578,3127.2,3126.8,2.00479]
[1641661148481,1.5,3126.9,3125.9,1.59836328]
[1641661148683,1.5,3126.4,3124.7,46.7206]
[1641661148882,1.5,3126.5,3126.3,0.5]
[1641661149084,1.5,3126.5,3123.8,5.414]
[1641661149085,3.36375698,3126.4,3124.0,34.8963]
[1641661149282,1.5,3125.3,3123.8,9.414]
[1641661149482,2.00479,3124.9,3124.1,2.00479]
[1641661149685,2.00479,3125.2,3124.8,0.96003127]
[1641661150182,1.59902523,3126.3,3125.3,0.95988261]
[1641661150383,1.5,3126.5,3125.3,0.95988261]
[1641661150586,1.25993637,3127.5,3125.9,0.95971996]
[1641661150784,2.75993637,3127.5,3126.5,0.95951847]
[1641661150983,1.24013637,3127.5,3127.3,4.0]
[1641661151186,2.7217693,3128.1,3127.4,1.59723997]
[1641661151385,2.53326043,3128.2,3127.4,4.26429297]
[1641661151584,2.80743652,3128.0,3127.4,2.667053]
[1641661151785,1.5,3127.5,3126.2,13.61]
[1641661151989,1.5,3127.8,3125.8,4.0]
[1641661152187,1.5,3127.8,3125.8,4.8828216]
[1641661152391,1.5,3126.5,3126.3,1.59815126]
[1641661152586,0.264788,3126.4,3126.2,5.116807]
[1641661152786,1.5,3126.3,3125.1,1.38234484]
[1641661153085,1.5,3126.1,3125.1,1.38234484]
[1641661153286,1.5,3126.2,3125.1,1.38234484]
[1641661153485,1.5,3126.2,3125.1,2.00479]
[1641661153486,1.5,3125.2,3125.1,2.00479]
[1641661153688,0.905575,3125.2,3125.1,2.00479]
[1641661153887,1.764788,3125.2,3124.8,2.00479]
[1641661154187,0.264788,3125.2,3124.8,2.00479]
[1641661154387,1.5,3125.1,3124.8,2.00479]
[1641661154587,1.5,3125.7,3124.8,2.00479]
[1641661154789,2.00479,3125.9,3124.8,2.00479]
[1641661154989,1.5,3125.8,3124.8,2.00479]
[1641661155187,2.00479,3125.9,3124.8,2.00479]
[1641661155388,1.5,3125.8,3124.8,2.00479]
[1641661155587,2.00479,3125.9,3124.8,2.00479]
[1641661155988,1.5,3124.9,3124.8,2.00479]
[1641661156589,2.00479,3125.9,3124.8,2.00479]
[1641661157188,1.5,3125.4,3124.8,2.00479]
[1641661157390,1.5,3125.7,3124.8,2.00479]
[1641661157689,1.5,3125.7,3124.8,4.00958]
[1641661158089,1.5,3124.9,3124.8,4.00958]
[1641661158588,2.00479,3125.9,3124.8,4.00958]
[1641661158991,1.5,3124.9,3124.8,4.00958]
[1641661159900,0.905575,3125.1,3124.8,4.00958]
[1641661159901,0.640787,3125.1,3124.8,2.00479]
[1641661160293,1.5,3125.5,3124.8,2.00479]
[1641661160496,0.264788,3125.4,3124.8,2.00479]
[1641661161097,1.5,3125.2,3124.8,2.00479]
[1641661161496,2.00479,3125.2,3124.7,1.28297035]
[1641661161700,2.00479,3125.2,3124.8,1.45517695]
[1641661161896,1.5,3125.4,3124.8,1.45517695]
[1641661162109,1.5,3125.7,3124.8,1.45517695]
[1641661162297,1.5,3126.3,3124.9,4.0]
[1641661162499,1.5,3126.3,3125.5,1.45487366]
[1641661162898,1.59865457,3127.1,3125.5,1.45487366]
[1641661163097,1.5,3126.6,3125.5,1.45487366]
[1641661163297,1.5,3125.9,3125.5,1.45487366]
[1641661163498,2.00479,3126.4,3125.6,2.00479]
[1641661163698,0.264788,3126.3,3125.6,2.00479]
[1641661163900,0.264788,3126.3,3123.8,35.1487]
[1641661163901,1.5,3125.7,3123.8,35.8135]
[1641661164100,3.0992247,3125.9,3124.2,1.5992247]
[1641661164598,1.5,3124.9,3124.3,5.119918]
[1641661165305,1.5,3125.9,3124.7,13.61]
[1641661165500,1.5,3125.9,3125.8,2.00479]
[1641661165699,2.140787,3125.9,3125.8,2.00479]
[1641661166198,1.5,3126.3,3125.8,2.00479]
[1641661166399,1.764788,3126.3,3125.8,2.00479]
[1641661166701,0.264788,3126.3,3125.8,2.00479]
[1641661167199,1.5,3126.6,3125.8,1.1516741]
[1641661167404,1.764788,3126.5,3125.8,1.1516741]
[1641661167608,1.5,3126.5,3125.8,1.1516741]
[1641661167804,0.640787,3126.4,3125.8,1.1516741]
[1641661168006,0.264788,3126.3,3125.8,1.1516741]
[1641661168505,1.5,3127.2,3125.8,1.1516741]
[1641661168706,1.5,3127.4,3126.3,1.59814104]
[1641661168905,1.5,3126.6,3125.8,1.1516741]
[1641661169106,2.00479,3127.1,3126.3,2.00479]
[1641661169305,0.264788,3127.0,3126.3,2.00479]
[1641661169707,1.5,3127.3,3126.3,2.00479]
[1641661169909,1.5,3127.7,3126.5,1.15142136]
[1641661170113,1.5,3127.4,3126.5,1.15142136]
[1641661170307,1.5,3127.7,3126.5,1.15142136]
[1641661170510,1.5,3128.0,3126.5,5.15142136]
[1641661170707,1.5,3128.0,3126.6,5.116561]
[1641661170907,1.59807209,3128.2,3127.0,1.15123273]
[1641661171109,2.00479,3127.9,3127.2,2.00479]
[1641661171508,2.00479,3127.9,3127.3,5.11558]
[1641661171708,1.5,3127.7,3127.2,2.00479]
[1641661171908,2.910365,3127.9,3127.2,2.00479]
[1641661172107,4.410365,3127.9,3127.4,0.95926175]
[1641661172711,1.5,3127.5,3127.4,0.95926175]
[1641661172906,1.764788,3127.5,3127.2,2.00479]
[1641661173108,0.264788,3127.5,3127.2,2.00479]
[1641661173307,1.5,3127.3,3127.2,2.00479]
[1641661173707,1.59825343,3127.8,3127.2,2.00479]
[1641661173910,1.04007906,3129.1,3128.1,1.1508577]
[1641661174111,2.53326043,3129.6,3129.1,0.002]
[1641661174309,3.17866483,3129.8,3129.5,17.61]
[1641661174509,1.68632647,3129.8,3129.2,5.112882]
[1641661174709,0.71831347,3129.8,3129.6,5.112392]
[1641661174907,2.56859104,3129.7,3129.5,0.489875]
[1641661175116,3.5046523,3130.2,3129.6,4.00958]
[1641661175313,3.5046523,3130.2,3129.7,5.112311]
[1641661175610,3.5046523,3130.2,3129.7,0.264788]
[1641661175810,1.3975,3129.8,3129.6,4.00958]
[1641661176111,1.3975,3129.8,3128.2,3.13]
[1641661176311,1.3975,3129.2,3127.6,4.0]
[1641661176511,2.038287,3129.2,3127.6,4.0]
[1641661176915,2.038287,3129.2,3128.0,1.07770798]
[1641661177115,6.047867,3129.2,3128.2,2.00479]
[1641661178913,21.157867,3129.2,3128.2,2.00479]
[1641661179213,22.48183261,3129.2,3127.9,2.00479]
[1641661179413,1.3975,3128.0,3127.9,2.00479]
[1641661179612,2.038287,3128.0,3127.9,2.00479]
[1641661180216,2.038287,3128.0,3126.8,3.2765685]
[1641661180416,1.3975,3127.8,3126.8,3.2765685]
[1641661180614,1.3975,3127.4,3126.8,3.2765685]
[1641661180813,1.3975,3127.1,3126.9,0.489875]
[1641661181216,1.3975,3127.4,3126.9,2.494665]
[1641661181613,2.00479,3127.6,3126.9,2.494665]
[1641661182014,1.3975,3128.1,3127.4,3.39863582]
[1641661182215,1.3975,3127.9,3127.5,0.264788]
[1641661182813,1.3975,3127.9,3127.6,0.225087]
[1641661183017,1.3975,3128.1,3127.7,0.264788]
[1641661183218,1.3975,3128.1,3127.7,2.269578]
[1641661183818,1.3975,3128.1,3127.7,2.00479]
[1641661184015,1.3975,3127.8,3126.9,3.08249798]
[1641661184215,1.3975,3127.0,3126.9,1.07770798]
[1641661184416,1.3975,3127.0,3126.7,4.34406859]
[1641661184615,15.61479,3128.4,3126.7,0.264788]
[1641661184818,1.3975,3126.8,3126.7,0.264788]
[1641661185217,2.00479,3126.9,3126.7,0.264788]
[1641661185418,2.00479,3126.9,3126.7,3.19075625]
[1641661185820,3.40229,3127.2,3126.9,0.45517492]
[1641661186021,2.00479,3127.2,3127.0,0.264788]
[1641661186222,1.3975,3127.8,3127.0,0.264788]
[1641661186420,0.640787,3127.7,3126.6,0.07993]
[1641661186621,1.5,3127.6,3126.5,0.225087]
[1641661186920,1.5,3127.6,3126.2,2.00479]
[1641661186921,1.3975,3126.7,3126.4,2.67594097]
[1641661187121,1.3975,3126.5,3126.4,1.07770798]
[1641661187522,1.3975,3126.5,3126.4,7.98e-06]
[1641661188124,1.3975,3126.5,3126.2,2.00479]
[1641661188322,2.00479,3126.8,3126.2,2.00479]
[1641661188522,3.40229,3126.8,3126.2,2.00479]
[1641661188722,2.038287,3126.7,3126.3,0.264788]
[1641661189022,1.3975,3126.7,3126.3,0.264788]
[1641661189226,2.00479,3127.1,3126.3,0.264788]
[1641661189425,1.3975,3126.9,3126.3,0.264788]
[1641661189624,1.3975,3126.4,3126.3,0.264788]
[1641661189824,1.3975,3126.4,3126.2,2.00479]
[1641661190629,0.640787,3126.3,3126.2,2.00479]
[1641661191030,13.61,3126.2,3125.8,1.34711197]
[1641661191227,1.3975,3125.9,3125.5,1.61658994]
[1641661191429,3.50479,3126.0,3125.5,1.61658994]
[1641661191627,1.3975,3125.6,3125.5,1.61658994]
[1641661192028,1.3975,3125.7,3125.5,1.61658994]
[1641661192227,1.3975,3126.1,3125.6,0.264788]
[1641661192428,1.3975,3126.0,3125.6,0.264788]
[1641661192828,1.3975,3125.9,3125.6,0.264788]
[1641661193027,0.640787,3126.1,3125.6,0.264788]
[1641661193233,1.3975,3126.0,3125.6,0.264788]
[1641661193832,1.3975,3126.5,3126.0,0.95968851]
[1641661194034,1.3975,3126.5,3126.1,0.489875]
[1641661194234,2.00479,3126.8,3126.5,0.95952646]
[1641661194235,1.3975,3126.8,3126.5,0.95952646]
[1641661194434,1.5,3128.4,3126.6,0.264788]
[1641661194633,1.5,3127.8,3126.6,0.264788]
[1641661194835,1.5,3127.7,3126.6,0.264788]
[1641661195034,1.3975,3127.3,3126.6,0.264788]
[1641661195233,1.3975,3126.7,3126.6,2.269578]
[1641661195434,0.640787,3127.2,3126.6,2.269578]
[1641661195635,1.3975,3126.8,3126.6,2.269578]
[1641661195836,0.640787,3127.2,3126.6,2.269578]
[1641661196234,2.038287,3127.2,3126.6,2.269578]
[1641661196634,0.640787,3127.2,3126.6,2.269578]
[1641661197036,1.3975,3126.8,3126.6,2.269578]
[1641661198135,0.640787,3127.2,3126.6,2.269578]
[1641661198344,1.3975,3127.1,3126.6,2.269578]
[1641661198537,1.3975,3127.1,3126.7,0.95946745]
[1641661198737,0.07994,3128.8,3126.9,0.1025]
[1641661199034,0.4385,3128.8,3127.9,0.95909898]
[1641661199238,0.4385,3128.8,3128.1,2.00479]
[1641661199441,0.4385,3128.2,3127.4,0.0799]
[1641661199639,13.61,3128.6,3126.9,5.115416]
[1641661199838,0.4385,3127.9,3126.4,33.143]
[1641661200039,0.4385,3127.9,3126.9,1.59794696]
[1641661200238,13.61,3128.6,3126.9,1.59794696]
[1641661200239,0.4385,3128.1,3127.2,0.264788]
[1641661200637,0.4385,3128.1,3127.0,0.07992]
[1641661200840,0.4385,3127.2,3126.9,0.80913492]
[1641661201040,0.4385,3127.0,3126.9,0.80913492]
[1641661201239,2.44329,3127.0,3126.2,1.61658994]
[1641661201441,0.4385,3126.6,3126.2,1.61658994]
[1641661201639,0.640787,3126.9,3126.2,1.61658994]
[1641661201839,0.640787,3126.9,3125.7,4.69936623]
[1641661201840,0.4385,3126.3,3125.7,4.04311898]
[1641661202040,1.59923237,3126.3,3126.0,1.0788342]
[1641661202243,0.4385,3126.1,3126.0,1.0788342]
[1641661202442,0.4385,3126.1,3126.0,3.42e-05]
[1641661202642,1.9385,3126.1,3125.2,2.02281412]
[1641661202841,0.4385,3125.5,3125.2,2.02281412]
[1641661203042,0.4385,3125.5,3125.1,0.489875]
[1641661203346,4.00958,3125.2,3125.1,0.489875]
[1641661203542,4.00958,3125.2,3124.6,1.11513093]
[1641661203742,4.44808,3125.2,3124.6,1.11513093]
[1641661203949,4.44808,3125.2,3124.6,1.37591893]
[1641661204142,4.00958,3125.2,3124.6,1.37591893]
[1641661204344,4.00958,3125.2,3124.6,0.264788]
[1641661204743,1.83104859,3125.2,3124.6,0.264788]
[1641661205144,0.4385,3124.7,3124.1,2.00479]
[1641661205349,0.640787,3124.6,3124.1,2.269578]
[1641661205544,1.83104859,3125.2,3124.1,2.269578]
[1641661205744,0.4385,3125.0,3124.1,2.269578]
[1641661205949,15.44104859,3125.2,3124.1,2.269578]
[1641661206145,0.4385,3124.2,3123.8,1.78166908]
[1641661206346,0.4385,3123.9,3123.8,1.78166908]
[1641661207146,1.60019714,3124.3,3123.2,4.47624531]
[1641661207345,2.00479,3124.1,3123.3,2.00479]
[1641661207545,0.640787,3124.0,3123.4,0.489875]
[1641661207746,0.640787,3124.0,3123.4,0.264788]
[1641661207945,2.140787,3124.0,3123.4,0.264788]
[1641661208147,0.640787,3124.0,3123.2,4.47624531]
[1641661208447,14.5434523,3123.9,3123.2,4.47624531]
[1641661208648,16.14384408,3123.9,3123.2,4.47624531]
[1641661209048,16.14384408,3123.9,3123.2,2.69457623]
[1641661209049,1.60083243,3123.3,3123.2,2.69457623]
[1641661209247,4.00958,3123.3,3122.3,1.78166908]
[1641661209446,1.5,3123.1,3122.3,1.78166908]
[1641661209746,0.640787,3123.0,3122.3,1.78166908]
[1641661210347,0.640787,3123.0,3122.4,0.225087]
[1641661211048,0.640787,3123.0,3122.1,0.08004]
[1641661211247,2.00479,3122.9,3122.0,2.00479]
[1641661211445,2.00479,3122.9,3121.8,3.34699669]
[1641661211446,1.5,3122.6,3121.8,3.34699669]
[1641661211647,1.5,3122.5,3121.8,3.34699669]
[1641661211848,1.6010144,3122.7,3121.8,3.34699669]
[1641661212048,3.50479,3122.9,3121.8,3.34699669]
[1641661212246,3.50479,3122.9,3121.8,1.32408088]
[1641661212447,2.00479,3122.9,3121.9,1.53166127]
[1641661212647,2.00479,3123.3,3122.1,1.60041227]
[1641661213048,1.53909,3123.3,3122.2,5.203811]
[1641661213348,1.53909,3123.3,3122.7,2.00479]
[1641661213551,0.640787,3123.2,3122.7,2.269578]
[1641661213947,2.00479,3123.8,3122.7,4.49527982]
[1641661214149,2.00479,3123.8,3122.8,0.08003]
[1641661214347,0.08003,3125.5,3123.3,1.82402933]
[1641661214548,0.08,3126.5,3123.4,0.08]
[1641661214748,1.5,3125.4,3123.9,1.56388443]
[1641661214950,13.61,3125.9,3123.9,1.56388443]
[1641661215148,13.61,3125.9,3124.0,5.119672]
[1641661215348,2.00479,3125.0,3124.2,2.00479]
[1641661215548,0.640787,3124.9,3124.2,2.00479]
[1641661215749,2.00479,3125.0,3124.3,1.764688]
[1641661215949,1.5,3126.5,3124.4,0.225087]
[1641661216157,1.59929119,3126.1,3124.4,5.34566]
[1641661216550,1.59914797,3126.3,3124.6,3.09904797]
[1641661216748,1.5,3125.8,3124.4,5.34566]
[1641661216950,1.5995905,3125.5,3124.2,3.58175252]
[1641661217148,1.59957771,3125.5,3124.2,3.58175252]
[1641661217348,2.00479,3125.2,3124.3,5.120245]
[1641661219051,2.00479,3125.2,3124.2,2.00479]
[1641661219254,2.00479,3124.4,3123.9,2.00479]
[1641661219550,0.640787,3124.3,3124.0,0.489875]
[1641661219754,0.640787,3124.3,3124.0,0.264788]
[1641661219950,0.640787,3124.3,3123.9,2.00479]
[1641661220150,0.640787,3124.3,3123.9,2.269578]
[1641661220551,2.00479,3124.4,3123.9,2.269578]
[1641661221654,0.640787,3124.3,3123.9,2.269578]
[1641661221854,0.640787,3124.3,3123.9,2.494665]
[1641661222054,2.00479,3124.4,3123.9,2.494665]
[1641661222254,1.60012801,3127.9,3123.9,2.494665]
[1641661222454,0.6648,3125.8,3124.5,0.96013656]
[1641661222653,0.07999,3127.0,3124.5,0.96013656]
[1641661222654,1.5,3125.7,3124.5,0.96013656]
[1641661222856,1.5,3125.9,3124.5,0.96013656]
[1641661223054,1.5,3125.5,3124.5,0.96013656]
[1641661223354,13.61,3125.6,3125.0,2.00479]
[1641661223555,13.61,3125.6,3123.9,1.15239492]
[1641661223556,1.59987457,3124.9,3123.9,1.15239492]
[1641661223762,1.5,3125.4,3123.9,1.15239492]
[1641661223960,1.59988737,3124.9,3123.9,1.15239492]
[1641661224560,1.05872124,3124.8,3123.9,1.15239492]
[1641661224860,1.5,3124.6,3123.9,1.15239492]
[1641661225059,1.5,3124.4,3123.9,1.15239492]
[1641661225260,1.60032006,3124.1,3123.9,1.15239492]
[1641661225662,1.60032006,3124.1,3123.8,2.00479]
[1641661225864,1.86208188,3124.5,3123.8,2.00479]
[1641661226068,1.60001024,3124.7,3123.9,1.22509653]
[1641661226464,1.60002816,3124.6,3123.9,1.22509653]
[1641661227064,0.640787,3124.5,3123.9,1.22509653]
[1641661227463,0.640787,3124.5,3124.4,2.00479]
[1641661227664,0.640787,3124.5,3123.9,0.96030853]
[1641661227865,1.5,3124.0,3123.8,2.00479]
[1641661228064,1.5,3124.0,3122.8,0.96067536]
[1641661228264,1.5,3124.0,3122.5,0.96075178]
[1641661228463,0.640787,3124.5,3122.6,0.08003]
[1641661228665,1.04358292,3123.9,3123.1,1.1526926]
[1641661228866,1.60014849,3124.4,3123.2,0.489875]
[1641661229067,1.5,3124.2,3123.2,0.489875]
[1641661229265,1.60044813,3123.8,3123.2,0.489875]
[1641661229474,2.00479,3124.0,3123.2,2.494665]
[1641661229664,2.00479,3124.3,3123.3,0.96051641]
[1641661229864,1.60024324,3124.2,3123.3,0.96051641]
[1641661231067,1.5,3124.5,3123.8,0.96035599]
[1641661231266,1.59981058,3125.4,3123.9,0.489875]
[1641661231469,1.59981058,3125.4,3125.0,2.00479]
[1641661231668,0.640787,3125.3,3125.0,2.00479]
[1641661232270,1.5,3125.2,3125.0,2.00479]
[1641661232669,0.640787,3125.3,3125.0,2.00479]
[1641661232969,2.00479,3125.8,3125.0,2.00479]
[1641661233168,15.61479,3125.8,3124.7,2.00479]
[1641661233369,1.5,3125.2,3124.7,2.00479]
[1641661233569,2.00479,3125.3,3124.7,2.00479]
[1641661233771,0.640787,3125.1,3124.7,2.00479]
[1641661233972,0.640787,3125.1,3124.7,2.269578]
[1641661234171,33.9252,3127.7,3125.9,0.95972043]
[1641661234372,1.5,3126.9,3125.8,0.264788]
[1641661234574,1.5,3126.9,3125.3,1.15188833]
[1641661234776,1.45814175,3126.8,3125.3,1.15188833]
[1641661235176,1.45814175,3126.8,3125.7,0.9597678]
[1641661235375,1.45814175,3126.8,3126.2,2.00479]
[1641661235778,0.415701,3126.7,3126.2,2.00479]
[1641661236579,0.415701,3126.7,3126.3,0.640787]
[1641661236777,33.34046,3127.9,3126.3,0.640787]
[1641661236977,0.07993,3128.3,3126.3,0.640787]
[1641661237180,1.59851913,3127.6,3126.3,0.640787]
[1641661237378,1.59851913,3127.6,3127.4,2.00479]
[1641661237578,0.7695146,3127.7,3127.4,2.00479]
[1641661237978,2.30298115,3128.4,3127.6,1.4999]
[1641661238181,2.30298115,3128.4,3127.5,0.264788]
[1641661238182,2.30298115,3128.4,3127.5,0.95920639]
[1641661238383,0.7695146,3128.4,3127.5,0.95920639]
[1641661238579,0.7695146,3128.4,3127.4,2.00479]
[1641661239187,0.7695146,3128.4,3127.4,3.50469]
[1641661239479,0.7695146,3128.4,3128.3,4.00958]
[1641661240079,0.415701,3128.6,3128.3,4.00958]
[1641661240780,0.7695146,3129.1,3128.3,4.274368]
[1641661241181,0.7675146,3129.1,3128.3,4.274368]
[1641661241379,1.27788879,3129.6,3129.0,2.00479]
[1641661241583,1.59758445,3129.4,3129.0,2.00479]
[1641661241782,0.415701,3129.3,3129.0,2.00479]
[1641661241980,0.415701,3129.3,3128.3,1.83232008]
[1641661242183,0.415701,3129.3,3128.3,2.79130151]
[1641661242583,1.915701,3129.3,3128.3,1.83232008]
[1641661242780,1.59791632,3128.8,3128.4,5.113781]
[1641661242981,1.59791632,3128.8,3128.3,0.264788]
[1641661243180,1.59791632,3128.8,3128.3,0.640787]
[1641661243379,1.59791631,3129.1,3128.0,2.00479]
[1641661243380,2.00479,3128.7,3128.0,2.00479]
[1641661243581,2.00479,3128.7,3128.1,0.264788]
[1641661243981,1.59777845,3129.0,3128.2,5.114435]
[1641661244179,1.59777845,3129.0,3128.3,0.264788]
[1641661244581,1.59777845,3129.0,3128.0,2.96384865]
[1641661244780,1.59777845,3129.0,3128.0,2.00479]
[1641661245381,2.00479,3128.9,3128.0,2.00479]
[1641661245982,2.00479,3128.9,3128.1,5.114353]
[1641661246283,2.00479,3128.9,3128.2,0.640787]
[1641661246581,2.00479,3128.9,3128.3,0.264788]
[1641661246781,2.51461748,3129.2,3128.3,0.264788]
[1641661247383,1.59767123,3129.2,3128.6,2.00479]
[1641661247582,1.59733437,3129.9,3128.7,1.764688]
[1641661247783,1.27788879,3130.1,3128.8,0.95880361]
[1641661247982,1.59754362,3129.5,3128.8,0.95880361]
[1641661248183,0.415701,3129.4,3128.6,2.00479]
[1641661248585,0.415701,3129.4,3128.7,0.95886018]
[1641661249186,0.415701,3129.4,3128.6,2.00479]
[1641661249388,2.00479,3128.9,3128.1,0.95903517]
[1641661249589,2.00479,3128.9,3128.2,0.905575]
[1641661249988,2.00479,3128.9,3128.3,5.11419]
[1641661250789,2.00479,3129.2,3128.6,0.9588705]
[1641661251286,2.00479,3129.2,3128.7,0.264788]
[1641661251488,2.00479,3129.2,3128.8,2.00479]
[1641661253991,2.00479,3129.2,3128.9,0.95879651]
[1641661254193,2.00479,3129.2,3128.9,1.22358451]
[1641661254392,1.59734713,3129.9,3128.9,1.22358451]
[1641661254595,1.27788879,3131.2,3129.3,2.4585595]
[1641661254791,1.59693644,3130.7,3129.9,0.95847646]
[1641661254992,0.415701,3130.6,3130.0,0.905575]
[1641661255192,1.9155728,3131.2,3130.2,0.95837548]
[1641661255493,1.59674265,3131.1,3130.5,2.00479]
[1641661255699,1.59674265,3131.1,3130.5,2.269578]
[1641661256395,1.59674265,3131.1,3130.5,2.00479]
[1641661256995,2.01244365,3131.1,3130.5,2.269578]
[1641661257395,2.01244365,3131.1,3130.5,3.22789015]
[1641661257594,1.59674265,3131.1,3130.5,3.22789015]
[1641661258198,2.00479,3131.3,3130.5,3.22789015]
[1641661258497,1.59668146,3131.2,3130.6,5.110514]
[1641661258899,1.59647243,3131.6,3130.7,0.905575]
[1641661259098,1.59612843,3132.3,3131.3,1.4999]
[1641661259299,33.8649,3132.6,3131.3,1.4999]
[1641661259497,1.59587371,3132.8,3132.1,2.00479]
[1641661259701,0.415701,3132.7,3132.2,0.264788]
[1641661260503,2.00479,3132.9,3132.2,0.264788]
[1641661260902,2.00479,3132.9,3132.3,0.640787]
[1641661261100,2.00479,3132.9,3132.4,0.264788]
[1641661261303,2.00479,3132.9,3132.3,0.640787]
[1641661261304,1.59596031,3132.6,3132.1,2.00479]
[1641661261502,1.5,3132.4,3131.3,1.25915693]
[1641661261706,1.5962227,3132.2,3130.6,34.5722]
[1641661261907,1.5962227,3132.2,3130.3,37.49760057]
[1641661262104,1.5,3132.1,3130.3,3.11800057]
[1641661262308,1.5,3132.1,3130.4,5.10978]
[1641661262503,1.5,3131.9,3130.4,5.10978]
[1641661262703,13.61,3132.7,3130.4,5.10978]
[1641661262903,0.07983,3132.6,3130.4,5.10978]
[1641661263103,1.59633991,3131.8,3130.8,1.36741761]
[1641661263305,15.11,3132.7,3130.8,1.36741761]
[1641661263507,2.00479,3131.6,3130.8,3.37220761]
[1641661263703,2.00479,3131.6,3130.9,0.905575]
[1641661263903,2.00479,3131.6,3130.9,5.373752]
[1641661263904,0.415701,3131.5,3130.9,5.373752]
[1641661264106,0.415701,3131.5,3130.0,0.07983]
[1641661264305,0.415701,3131.5,3129.9,1.62473681]
[1641661264505,1.52013349,3131.4,3129.9,1.62473681]
[1641661264703,3.02013349,3131.4,3130.0,5.110678]